[Event "*** Titled Tuesday Blitz"]
[Site "Chess.com"]
[Date "2020.05.05"]
[Round "6"]
[White "lucasmito"]
[Black "Andrei_Belozerov"]
[Result "0-1"]
[WhiteElo "2423"]
[BlackElo "2575"]
[TimeControl "180+1"]
[EndTime "11:05:44 PDT"]
[Termination "Andrei_Belozerov won by resignation"]

1. e4 {[%clk 0:03:00.9]} 1... c5 {[%clk 0:02:59.4]} 2. Nf3 {[%clk 0:03:01.1]}
2... d6 {[%clk 0:02:59.3]} 3. Nc3 {[%clk 0:03:01.4]} 3... Nf6 {[%clk 0:02:55.1]}
4. d4 {[%clk 0:03:01.8]} 4... cxd4 {[%clk 0:02:54.4]} 5. Nxd4 {[%clk 0:03:02.4]}
5... a6 {[%clk 0:02:54.5]} 6. Be3 {[%clk 0:03:01.6]} 6... e5 {[%clk 0:02:53.4]}
7. Nb3 {[%clk 0:03:02]} 7... Be6 {[%clk 0:02:52.1]} 8. f3 {[%clk 0:03:02.6]}
8... h5 {[%clk 0:02:51.2]} 9. Qd2 {[%clk 0:03:02.6]} 9... Nbd7 {[%clk
0:02:50.4]} 10. O-O-O {[%clk 0:03:01.6]} 10... Rc8 {[%clk 0:02:48.7]} 11. Kb1
{[%clk 0:02:53.7]} 11... Be7 {[%clk 0:02:48]} 12. Nd5 {[%clk 0:02:46.8]} 12...
Bxd5 {[%clk 0:02:40.5]} 13. exd5 {[%clk 0:02:47.7]} 13... g6 {[%clk 0:02:38.6]}
14. c4 {[%clk 0:02:40.6]} 14... b6 {[%clk 0:02:34.1]} 15. c5 {[%clk 0:02:27.9]}
15... bxc5 {[%clk 0:02:20.7]} 16. Bxa6 {[%clk 0:02:23.5]} 16... Ra8 {[%clk
0:02:19.6]} 17. Bb7 {[%clk 0:02:23]} 17... Ra7 {[%clk 0:02:18.3]} 18. Bc6 {[%clk
0:02:23.2]} 18... O-O {[%clk 0:02:18]} 19. h4 {[%clk 0:02:19.3]} 19... Qb6
{[%clk 0:02:16]} 20. g4 {[%clk 0:02:16.5]} 20... Rb8 {[%clk 0:02:14.6]} 21. Qc2
{[%clk 0:01:21.7]} 21... Qa6 {[%clk 0:02:01.2]} 22. a4 {[%clk 0:00:55.6]} 22...
Rb4 {[%clk 0:01:56.6]} 23. Nd2 {[%clk 0:00:54.2]} 23... Nb6 {[%clk 0:01:53]} 24.
Ne4 {[%clk 0:00:33.3]} 24... Nxa4 {[%clk 0:01:49.8]} 25. Bxa4 {[%clk 0:00:28.2]}
25... Rxa4 {[%clk 0:01:49.1]} 26. Nxf6+ {[%clk 0:00:26]} 26... Bxf6 {[%clk
0:01:48]} 27. Kc1 {[%clk 0:00:26.9]} 27... e4 {[%clk 0:01:47.1]} 0-1

[Event "*** Titled Tuesday Blitz"]
[Site "Chess.com"]
[Date "2020.05.05"]
[Round "6"]
[White "EfrenRamos1"]
[Black "CHENNAIBOND"]
[Result "0-1"]
[WhiteElo "2171"]
[BlackElo "1258"]
[TimeControl "180+1"]
[EndTime "11:05:44 PDT"]
[Termination "CHENNAIBOND won on time"]

1. d4 {[%clk 0:03:00.9]} 1... Nf6 {[%clk 0:02:59.8]} 2. Nf3 {[%clk 0:02:58.4]}
2... d5 {[%clk 0:02:59.7]} 3. c4 {[%clk 0:02:57.1]} 3... e6 {[%clk 0:03:00.1]}
4. g3 {[%clk 0:02:56.8]} 4... Bb4+ {[%clk 0:02:58.5]} 5. Nbd2 {[%clk 0:02:55.4]}
5... Be7 {[%clk 0:02:59.2]} 6. Qc2 {[%clk 0:02:53.4]} 6... O-O {[%clk
0:02:58.1]} 7. Bg2 {[%clk 0:02:52.8]} 7... c6 {[%clk 0:02:55.8]} 8. O-O {[%clk
0:02:51.6]} 8... Nbd7 {[%clk 0:02:56]} 9. Rd1 {[%clk 0:02:51]} 9... b6 {[%clk
0:02:56.1]} 10. e4 {[%clk 0:02:50.6]} 10... Bb7 {[%clk 0:02:45.5]} 11. b3 {[%clk
0:02:50.9]} 11... dxe4 {[%clk 0:02:41.8]} 12. Nxe4 {[%clk 0:02:49.8]} 12... c5
{[%clk 0:02:42.3]} 13. Nxf6+ {[%clk 0:02:47.7]} 13... Bxf6 {[%clk 0:02:42.2]}
14. Bb2 {[%clk 0:02:42.7]} 14... Qc7 {[%clk 0:02:40.2]} 15. d5 {[%clk
0:02:41.2]} 15... exd5 {[%clk 0:02:27.4]} 16. cxd5 {[%clk 0:02:38]} 16... Rfe8
{[%clk 0:02:10.5]} 17. d6 {[%clk 0:02:34.7]} 17... Qc8 {[%clk 0:02:00.7]} 18.
Re1 {[%clk 0:02:14.2]} 18... Bxb2 {[%clk 0:01:25.7]} 0-1

[Event "*** Titled Tuesday Blitz"]
[Site "Chess.com"]
[Date "2020.05.05"]
[Round "6"]
[White "Arjun2002"]
[Black "Maksimus1998"]
[Result "1-0"]
[WhiteElo "2649"]
[BlackElo "2469"]
[TimeControl "180+1"]
[EndTime "11:05:47 PDT"]
[Termination "Arjun2002 won by resignation"]

1. e4 {[%clk 0:03:00.9]} 1... c5 {[%clk 0:02:59.8]} 2. Nf3 {[%clk 0:02:59.2]}
2... e6 {[%clk 0:03:00.2]} 3. d4 {[%clk 0:02:58.7]} 3... cxd4 {[%clk 0:03:01.1]}
4. Nxd4 {[%clk 0:02:59.3]} 4... a6 {[%clk 0:03:01.2]} 5. Bd3 {[%clk 0:02:59]}
5... Bc5 {[%clk 0:03:00.5]} 6. Nb3 {[%clk 0:02:58.7]} 6... Ba7 {[%clk
0:03:01.1]} 7. O-O {[%clk 0:02:56.4]} 7... Nc6 {[%clk 0:02:59.3]} 8. Qg4 {[%clk
0:02:55.8]} 8... Nf6 {[%clk 0:02:55.9]} 9. Qxg7 {[%clk 0:02:55.8]} 9... Rg8
{[%clk 0:02:55.5]} 10. Qh6 {[%clk 0:02:56]} 10... d6 {[%clk 0:02:44.8]} 11. Bg5
{[%clk 0:02:50.6]} 11... Rg6 {[%clk 0:02:44.4]} 12. Qh4 {[%clk 0:02:49.9]} 12...
Ne5 {[%clk 0:02:44.1]} 13. Be2 {[%clk 0:02:43.1]} 13... b5 {[%clk 0:02:27.6]}
14. N1d2 {[%clk 0:02:40]} 14... Bb7 {[%clk 0:02:27.2]} 15. a4 {[%clk 0:02:39]}
15... b4 {[%clk 0:02:23.4]} 16. Kh1 {[%clk 0:02:16.7]} 16... h6 {[%clk
0:02:20.8]} 17. Bxf6 {[%clk 0:02:15.4]} 17... Qxf6 {[%clk 0:02:16]} 18. Qxf6
{[%clk 0:02:13]} 18... Rxf6 {[%clk 0:02:16.9]} 19. f4 {[%clk 0:02:08.1]} 19...
Nd7 {[%clk 0:02:16.4]} 20. Na5 {[%clk 0:02:03.9]} 20... Bc8 {[%clk 0:02:16.2]}
21. Nac4 {[%clk 0:01:49.2]} 21... Ke7 {[%clk 0:01:44.7]} 22. Nxd6 {[%clk
0:01:48.9]} 22... Be3 {[%clk 0:01:44.5]} 23. N2c4 {[%clk 0:01:36.6]} 23... Bxf4
{[%clk 0:01:42]} 24. Nxc8+ {[%clk 0:01:35.2]} 24... Rxc8 {[%clk 0:01:41.6]} 25.
g3 {[%clk 0:01:34.9]} 25... Bg5 {[%clk 0:01:34.8]} 26. h4 {[%clk 0:01:32.2]}
26... Rxf1+ {[%clk 0:01:33.1]} 27. Rxf1 {[%clk 0:01:30.4]} 27... Bf6 {[%clk
0:01:33.8]} 28. b3 {[%clk 0:01:29.1]} 28... Bc3 {[%clk 0:01:27.9]} 29. Rxf7+
{[%clk 0:01:25.5]} 29... Kxf7 {[%clk 0:01:25]} 30. Nd6+ {[%clk 0:01:25.7]} 30...
Kf6 {[%clk 0:01:25.5]} 31. Nxc8 {[%clk 0:01:25.5]} 31... Nc5 {[%clk 0:01:26]}
32. Kg2 {[%clk 0:01:15.2]} 32... a5 {[%clk 0:01:24.2]} 33. Nd6 {[%clk
0:01:15.3]} 33... Be5 {[%clk 0:01:20.7]} 34. Nc4 {[%clk 0:01:12]} 34... Nxe4
{[%clk 0:01:19.3]} 35. Bd3 {[%clk 0:01:08.1]} 35... Nc5 {[%clk 0:01:11.2]} 36.
Nxa5 {[%clk 0:01:07.6]} 1-0

[Event "*** Titled Tuesday Blitz"]
[Site "Chess.com"]
[Date "2020.05.05"]
[Round "6"]
[White "maciek_92"]
[Black "Hikaru"]
[Result "0-1"]
[WhiteElo "2719"]
[BlackElo "3155"]
[TimeControl "180+1"]
[EndTime "11:05:48 PDT"]
[Termination "Hikaru won by resignation"]

1. e4 {[%clk 0:03:00.9]} 1... g6 {[%clk 0:03:00.9]} 2. d4 {[%clk 0:03:00.7]}
2... Bg7 {[%clk 0:03:00.7]} 3. Nc3 {[%clk 0:02:59.2]} 3... d6 {[%clk 0:02:58.5]}
4. Be3 {[%clk 0:02:59.6]} 4... a6 {[%clk 0:02:58.4]} 5. Qd2 {[%clk 0:02:49.4]}
5... b5 {[%clk 0:02:54]} 6. a3 {[%clk 0:02:43.3]} 6... Nd7 {[%clk 0:02:53.5]} 7.
Nf3 {[%clk 0:02:42.8]} 7... Bb7 {[%clk 0:02:53.1]} 8. Bd3 {[%clk 0:02:37.9]}
8... Ngf6 {[%clk 0:02:52.2]} 9. Bh6 {[%clk 0:02:32.7]} 9... O-O {[%clk 0:02:52]}
10. h4 {[%clk 0:02:28.2]} 10... e5 {[%clk 0:02:49.9]} 11. dxe5 {[%clk
0:02:21.5]} 11... dxe5 {[%clk 0:02:48.3]} 12. O-O-O {[%clk 0:02:10.2]} 12... Qe7
{[%clk 0:02:44.1]} 13. Qg5 {[%clk 0:01:33.1]} 13... Bxh6 {[%clk 0:02:38.9]} 14.
Qxh6 {[%clk 0:01:32.5]} 14... Ng4 {[%clk 0:02:39.6]} 15. Qd2 {[%clk 0:01:32.2]}
15... Rad8 {[%clk 0:02:36.5]} 16. h5 {[%clk 0:01:26]} 16... Nc5 {[%clk
0:02:31.7]} 17. hxg6 {[%clk 0:01:19.5]} 17... fxg6 {[%clk 0:02:32.6]} 18. Qe2
{[%clk 0:01:16.6]} 18... Ne6 {[%clk 0:02:16.8]} 19. Kb1 {[%clk 0:01:03.7]} 19...
Nf4 {[%clk 0:02:14.5]} 20. Qf1 {[%clk 0:01:04.3]} 20... c5 {[%clk 0:02:10.4]}
21. g3 {[%clk 0:00:56.3]} 21... Nxd3 {[%clk 0:02:08.8]} 22. Rxd3 {[%clk
0:00:55.8]} 22... Rxd3 {[%clk 0:02:08.4]} 23. Qxd3 {[%clk 0:00:55.2]} 23... Nxf2
{[%clk 0:02:08.5]} 24. Nd5 {[%clk 0:00:55.2]} 24... Qg7 {[%clk 0:01:59.6]} 25.
Qb3 {[%clk 0:00:34.8]} 25... c4 {[%clk 0:01:56.8]} 26. Qb4 {[%clk 0:00:34.7]}
26... Bxd5 {[%clk 0:01:56.5]} 27. exd5 {[%clk 0:00:31.4]} 27... Nxh1 {[%clk
0:01:54.9]} 28. Ng5 {[%clk 0:00:31.9]} 28... Qd7 {[%clk 0:01:53.8]} 29. Ne6
{[%clk 0:00:30.2]} 29... Re8 {[%clk 0:01:54]} 30. Qc5 {[%clk 0:00:16.4]} 30...
Nxg3 {[%clk 0:01:53.3]} 31. Qe3 {[%clk 0:00:14.5]} 31... Qxd5 {[%clk 0:01:48.4]}
32. Nc7 {[%clk 0:00:14.5]} 32... Qd1+ {[%clk 0:01:48.6]} 33. Ka2 {[%clk
0:00:14.9]} 33... Ne2 {[%clk 0:01:48.5]} 0-1

[Event "*** Titled Tuesday Blitz"]
[Site "Chess.com"]
[Date "2020.05.05"]
[Round "6"]
[White "SHIVACalypso"]
[Black "RitvarsReimanis"]
[Result "0-1"]
[WhiteElo "2301"]
[BlackElo "2553"]
[TimeControl "180+1"]
[EndTime "11:05:49 PDT"]
[Termination "RitvarsReimanis won by resignation"]

1. Nf3 {[%clk 0:03:00.9]} 1... Nf6 {[%clk 0:02:59.2]} 2. c4 {[%clk 0:02:59.3]}
2... e6 {[%clk 0:02:59.4]} 3. g3 {[%clk 0:02:58.6]} 3... d5 {[%clk 0:02:59.9]}
4. Bg2 {[%clk 0:02:56.3]} 4... Be7 {[%clk 0:03:00.4]} 5. O-O {[%clk 0:02:56.3]}
5... O-O {[%clk 0:02:59.7]} 6. d4 {[%clk 0:02:55.7]} 6... dxc4 {[%clk
0:02:59.6]} 7. Qc2 {[%clk 0:02:52.2]} 7... b5 {[%clk 0:02:59.6]} 8. a4 {[%clk
0:02:49.6]} 8... b4 {[%clk 0:02:59.8]} 9. Qxc4 {[%clk 0:02:48.6]} 9... a5 {[%clk
0:02:57.2]} 10. Qc2 {[%clk 0:02:39.7]} 10... Bb7 {[%clk 0:02:51.8]} 11. Nbd2
{[%clk 0:02:35.6]} 11... Nbd7 {[%clk 0:02:50.9]} 12. b3 {[%clk 0:02:30]} 12...
c5 {[%clk 0:02:50.3]} 13. Bb2 {[%clk 0:02:26]} 13... cxd4 {[%clk 0:02:47.6]} 14.
Nxd4 {[%clk 0:02:13.6]} 14... Bxg2 {[%clk 0:02:46.7]} 15. Kxg2 {[%clk 0:02:14]}
15... Rc8 {[%clk 0:02:45]} 16. Nc4 {[%clk 0:02:08.2]} 16... Nb6 {[%clk 0:02:41]}
17. Rac1 {[%clk 0:01:58.8]} 17... Nxc4 {[%clk 0:02:20.4]} 18. bxc4 {[%clk
0:01:59.7]} 18... Bc5 {[%clk 0:02:13.4]} 19. Rfd1 {[%clk 0:01:51.9]} 19... Qd7
{[%clk 0:02:08.9]} 20. Nf3 {[%clk 0:01:26.6]} 20... Qe7 {[%clk 0:01:59.9]} 21.
Bd4 {[%clk 0:01:11.4]} 21... Nd7 {[%clk 0:01:58.6]} 22. Qb2 {[%clk 0:00:59.1]}
22... Bxd4 {[%clk 0:01:55.4]} 23. Qxd4 {[%clk 0:01:00]} 23... Nc5 {[%clk
0:01:55.5]} 24. Ne5 {[%clk 0:00:24.1]} 24... Nb3 {[%clk 0:01:44.6]} 25. Qb6
{[%clk 0:00:12.8]} 25... Nxc1 {[%clk 0:01:36.8]} 26. Rxc1 {[%clk 0:00:12.4]}
26... Qc7 {[%clk 0:01:37.2]} 27. Qa6 {[%clk 0:00:09.9]} 27... Qxe5 {[%clk
0:01:36.1]} 0-1

[Event "*** Titled Tuesday Blitz"]
[Site "Chess.com"]
[Date "2020.05.05"]
[Round "6"]
[White "Gromes7"]
[Black "Olga_Zhuravleva"]
[Result "0-1"]
[WhiteElo "2096"]
[BlackElo "2267"]
[TimeControl "180+1"]
[EndTime "11:05:51 PDT"]
[Termination "Olga_Zhuravleva won by resignation"]

1. e4 {[%clk 0:03:00.9]} 1... e5 {[%clk 0:02:58.3]} 2. Nf3 {[%clk 0:03:00.8]}
2... Nc6 {[%clk 0:02:58.8]} 3. d4 {[%clk 0:03:00.9]} 3... exd4 {[%clk
0:02:58.2]} 4. Nxd4 {[%clk 0:03:01.8]} 4... Nf6 {[%clk 0:02:58.4]} 5. Nxc6
{[%clk 0:03:01]} 5... bxc6 {[%clk 0:02:59.3]} 6. Qe2 {[%clk 0:02:59]} 6... Qe7
{[%clk 0:02:50.8]} 7. e5 {[%clk 0:02:57.8]} 7... Nd5 {[%clk 0:02:50.4]} 8. c4
{[%clk 0:02:58.4]} 8... Ba6 {[%clk 0:02:50.8]} 9. b3 {[%clk 0:02:57.7]} 9... g6
{[%clk 0:02:50.6]} 10. Bb2 {[%clk 0:02:57.3]} 10... Bg7 {[%clk 0:02:51.2]} 11.
g3 {[%clk 0:02:57.3]} 11... O-O {[%clk 0:02:51.1]} 12. Bg2 {[%clk 0:02:57.3]}
12... Nb6 {[%clk 0:02:47]} 13. O-O {[%clk 0:02:54.2]} 13... Rae8 {[%clk
0:02:47.1]} 14. Re1 {[%clk 0:02:49.8]} 14... f6 {[%clk 0:02:41.5]} 15. e6 {[%clk
0:02:37.5]} 15... Qxe6 {[%clk 0:02:39.4]} 16. Qxe6+ {[%clk 0:02:36.4]} 16...
Rxe6 {[%clk 0:02:38.9]} 17. Rxe6 {[%clk 0:02:36.2]} 17... dxe6 {[%clk
0:02:39.8]} 18. Bxc6 {[%clk 0:02:27.2]} 18... Rd8 {[%clk 0:02:37.1]} 19. Nc3
{[%clk 0:02:00.8]} 19... Rd2 {[%clk 0:02:28.7]} 20. Rb1 {[%clk 0:01:58]} 20...
f5 {[%clk 0:02:23.7]} 21. Na4 {[%clk 0:01:13.2]} 21... Nxa4 {[%clk 0:02:22]} 22.
Bxg7 {[%clk 0:01:12.8]} 22... Kxg7 {[%clk 0:02:21.8]} 23. Bxa4 {[%clk
0:01:12.3]} 23... Rxa2 {[%clk 0:02:21.9]} 24. Rd1 {[%clk 0:01:10.5]} 24... Kf6
{[%clk 0:01:42.9]} 25. Rd7 {[%clk 0:01:08.7]} 25... Bxc4 {[%clk 0:01:42.6]} 26.
Rxc7 {[%clk 0:00:58.6]} 26... Bd5 {[%clk 0:01:37.7]} 27. f4 {[%clk 0:00:42.8]}
27... h6 {[%clk 0:01:33.9]} 28. Rxa7 {[%clk 0:00:41.1]} 28... Bxb3 {[%clk
0:01:27.4]} 29. Bxb3 {[%clk 0:00:33.3]} 29... Rxa7 {[%clk 0:01:25.3]} 30. h4
{[%clk 0:00:33.3]} 30... Ra3 {[%clk 0:01:23.8]} 0-1

[Event "*** Titled Tuesday Blitz"]
[Site "Chess.com"]
[Date "2020.05.05"]
[Round "6"]
[White "Kavyev_Ruslan"]
[Black "Bagirova"]
[Result "1-0"]
[WhiteElo "2508"]
[BlackElo "2187"]
[TimeControl "180+1"]
[EndTime "11:05:53 PDT"]
[Termination "Kavyev_Ruslan won by resignation"]

1. d4 {[%clk 0:03:00.5]} 1... d5 {[%clk 0:02:59.8]} 2. c4 {[%clk 0:03:00.3]}
2... e6 {[%clk 0:02:59.9]} 3. Nf3 {[%clk 0:02:59.9]} 3... Nf6 {[%clk 0:02:59]}
4. g3 {[%clk 0:03:00]} 4... Be7 {[%clk 0:02:58.6]} 5. Bg2 {[%clk 0:02:57]} 5...
O-O {[%clk 0:02:59]} 6. O-O {[%clk 0:02:56.9]} 6... Nbd7 {[%clk 0:02:55]} 7. Qc2
{[%clk 0:02:56.9]} 7... c6 {[%clk 0:02:55]} 8. Nbd2 {[%clk 0:02:56.6]} 8... b6
{[%clk 0:02:55.4]} 9. e4 {[%clk 0:02:57]} 9... Bb7 {[%clk 0:02:55.7]} 10. Rd1
{[%clk 0:02:56.7]} 10... Rc8 {[%clk 0:02:54.3]} 11. b3 {[%clk 0:02:56.2]} 11...
Qc7 {[%clk 0:02:53.9]} 12. Bb2 {[%clk 0:02:55.7]} 12... Qb8 {[%clk 0:02:53.8]}
13. Rac1 {[%clk 0:02:56.3]} 13... dxe4 {[%clk 0:02:48.2]} 14. Nxe4 {[%clk
0:02:56.3]} 14... c5 {[%clk 0:02:47.7]} 15. Nxf6+ {[%clk 0:02:55.4]} 15... Nxf6
{[%clk 0:02:46.2]} 16. d5 {[%clk 0:02:32.4]} 16... exd5 {[%clk 0:02:26.2]} 17.
Be5 {[%clk 0:02:28.2]} 17... Qa8 {[%clk 0:02:21.7]} 18. Ng5 {[%clk 0:02:27.7]}
18... g6 {[%clk 0:02:07.4]} 19. cxd5 {[%clk 0:01:55.5]} 19... Nxd5 {[%clk
0:01:57]} 20. Ne4 {[%clk 0:01:51.3]} 20... Nb4 {[%clk 0:01:48.9]} 21. Qe2 {[%clk
0:01:33.8]} 21... f5 {[%clk 0:01:37.9]} 22. Rd7 {[%clk 0:01:23.2]} 22... Bxe4
{[%clk 0:01:14.3]} 23. Rxe7 {[%clk 0:01:20.6]} 23... Rf7 {[%clk 0:01:08.4]} 24.
Qc4 {[%clk 0:01:09.8]} 24... Bd5 {[%clk 0:01:01.6]} 25. Qh4 {[%clk 0:01:09.1]}
25... Rxe7 {[%clk 0:00:53.7]} 26. Qxe7 {[%clk 0:01:07.1]} 1-0

[Event "*** Titled Tuesday Blitz"]
[Site "Chess.com"]
[Date "2020.05.05"]
[Round "6"]
[White "Klavdia_Nik"]
[Black "maxsergej"]
[Result "1/2-1/2"]
[WhiteElo "1949"]
[BlackElo "2116"]
[TimeControl "180+1"]
[EndTime "11:06:03 PDT"]
[Termination "Game drawn by agreement"]

1. Nf3 {[%clk 0:03:00.9]} 1... d5 {[%clk 0:02:58.9]} 2. c4 {[%clk 0:03:01.1]}
2... c6 {[%clk 0:02:56.3]} 3. b3 {[%clk 0:03:00.6]} 3... Nf6 {[%clk 0:02:56.2]}
4. Bb2 {[%clk 0:03:00.6]} 4... Nbd7 {[%clk 0:02:56.2]} 5. g3 {[%clk 0:03:00.9]}
5... g6 {[%clk 0:02:56.2]} 6. Bg2 {[%clk 0:03:00.4]} 6... Bg7 {[%clk 0:02:56.3]}
7. O-O {[%clk 0:02:57.6]} 7... O-O {[%clk 0:02:56.2]} 8. d3 {[%clk 0:02:56.7]}
8... Re8 {[%clk 0:02:54.7]} 9. Nbd2 {[%clk 0:02:57]} 9... b6 {[%clk 0:02:53.2]}
10. Ne5 {[%clk 0:02:55.2]} 10... Nxe5 {[%clk 0:02:52]} 11. Bxe5 {[%clk
0:02:55.1]} 11... Bb7 {[%clk 0:02:51.4]} 12. Qc2 {[%clk 0:02:50.1]} 12... Nd7
{[%clk 0:02:50.7]} 13. Bxg7 {[%clk 0:02:48.9]} 13... Kxg7 {[%clk 0:02:51]} 14.
d4 {[%clk 0:02:38.4]} 14... Nf6 {[%clk 0:02:44.4]} 15. Rad1 {[%clk 0:02:33.3]}
15... Rc8 {[%clk 0:02:43.1]} 16. e4 {[%clk 0:02:33.2]} 16... dxe4 {[%clk
0:02:40.5]} 17. Nxe4 {[%clk 0:02:33.4]} 17... Qc7 {[%clk 0:02:31.3]} 18. Nxf6
{[%clk 0:02:25.3]} 18... Kxf6 {[%clk 0:02:14.7]} 19. d5 {[%clk 0:02:07.3]} 19...
Kg7 {[%clk 0:02:12.2]} 20. Qc3+ {[%clk 0:01:55.7]} 20... Kg8 {[%clk 0:02:06.1]}
21. h4 {[%clk 0:01:49.5]} 21... cxd5 {[%clk 0:02:04.7]} 22. Bxd5 {[%clk
0:01:50]} 22... Bxd5 {[%clk 0:02:04.4]} 23. Rxd5 {[%clk 0:01:50.5]} 23... Red8
{[%clk 0:01:56.9]} 24. Rfd1 {[%clk 0:01:49.5]} 24... Rxd5 {[%clk 0:01:56.9]} 25.
Rxd5 {[%clk 0:01:49.9]} 25... Rd8 {[%clk 0:01:56.9]} 26. Qd4 {[%clk 0:01:48.9]}
26... Rxd5 {[%clk 0:01:56]} 27. Qxd5 {[%clk 0:01:49.3]} 27... e6 {[%clk
0:01:50.4]} 28. Qd4 {[%clk 0:01:45]} 28... a5 {[%clk 0:01:37.6]} 29. h5 {[%clk
0:01:42.1]} 29... Qc5 {[%clk 0:01:22.6]} 30. Qxc5 {[%clk 0:01:28.3]} 30... bxc5
{[%clk 0:01:22.4]} 31. h6 {[%clk 0:01:15.3]} 31... e5 {[%clk 0:01:20.2]} 32. f4
{[%clk 0:01:01.1]} 32... e4 {[%clk 0:01:14.1]} 33. g4 {[%clk 0:01:01.1]} 33...
f5 {[%clk 0:01:06.8]} 34. g5 {[%clk 0:01:01.1]} 34... Kf7 {[%clk 0:01:06.5]} 35.
a4 {[%clk 0:01:00]} 35... Ke6 {[%clk 0:01:06]} 36. Kf2 {[%clk 0:00:59.3]} 36...
Kd6 {[%clk 0:01:02.6]} 1/2-1/2

[Event "*** Titled Tuesday Blitz"]
[Site "Chess.com"]
[Date "2020.05.05"]
[Round "6"]
[White "AndrewDGreen"]
[Black "Aradej"]
[Result "0-1"]
[WhiteElo "2285"]
[BlackElo "2548"]
[TimeControl "180+1"]
[EndTime "11:06:04 PDT"]
[Termination "Aradej won by checkmate"]

1. e4 {[%clk 0:03:00.9]} 1... d6 {[%clk 0:02:58.3]} 2. d4 {[%clk 0:03:00.2]}
2... Nf6 {[%clk 0:02:58.8]} 3. Nc3 {[%clk 0:03:00]} 3... e5 {[%clk 0:02:59.4]}
4. Nf3 {[%clk 0:02:59.4]} 4... Nbd7 {[%clk 0:02:58.9]} 5. Bc4 {[%clk 0:02:59]}
5... Be7 {[%clk 0:02:59]} 6. a4 {[%clk 0:02:57.9]} 6... O-O {[%clk 0:02:59]} 7.
O-O {[%clk 0:02:54.8]} 7... c6 {[%clk 0:02:59.3]} 8. h3 {[%clk 0:02:54.8]} 8...
exd4 {[%clk 0:02:55]} 9. Qxd4 {[%clk 0:02:55.7]} 9... Nc5 {[%clk 0:02:42.1]} 10.
Re1 {[%clk 0:02:54.2]} 10... Be6 {[%clk 0:02:41.7]} 11. Bf4 {[%clk 0:02:48.5]}
11... Bxc4 {[%clk 0:02:40.6]} 12. Qxc4 {[%clk 0:02:46.3]} 12... Ne6 {[%clk
0:02:40.7]} 13. Bg3 {[%clk 0:02:30.9]} 13... d5 {[%clk 0:02:40.7]} 14. exd5
{[%clk 0:02:21.1]} 14... cxd5 {[%clk 0:02:40.7]} 15. Qb5 {[%clk 0:02:12.7]}
15... d4 {[%clk 0:02:30.2]} 16. Rad1 {[%clk 0:01:51.4]} 16... Bc5 {[%clk
0:02:18]} 17. Rxe6 {[%clk 0:01:31.1]} 17... fxe6 {[%clk 0:02:14.4]} 18. Qxc5
{[%clk 0:01:31.2]} 18... Rc8 {[%clk 0:01:58.8]} 19. Qxa7 {[%clk 0:01:17.2]}
19... Nh5 {[%clk 0:01:46.7]} 20. Rxd4 {[%clk 0:01:02.8]} 20... Qf6 {[%clk
0:01:40.5]} 21. Be5 {[%clk 0:00:59.4]} 21... Qf5 {[%clk 0:01:40.5]} 22. Qxb7
{[%clk 0:00:46.8]} 22... Qxc2 {[%clk 0:01:35.1]} 23. Rg4 {[%clk 0:00:40.9]}
23... g6 {[%clk 0:01:30.3]} 24. Qd7 {[%clk 0:00:31.3]} 24... Rce8 {[%clk
0:01:29.8]} 25. Ng5 {[%clk 0:00:23]} 25... Qxf2+ {[%clk 0:01:24.4]} 26. Kh1
{[%clk 0:00:20.1]} 26... Qe1+ {[%clk 0:01:22.4]} 27. Kh2 {[%clk 0:00:14.4]}
27... Qxe5+ {[%clk 0:01:22]} 28. Kh1 {[%clk 0:00:13.2]} 28... Rf1# {[%clk
0:01:19.5]} 0-1

[Event "*** Titled Tuesday Blitz"]
[Site "Chess.com"]
[Date "2020.05.05"]
[Round "6"]
[White "DortmundCity"]
[Black "MihailNik"]
[Result "1-0"]
[WhiteElo "2445"]
[BlackElo "2712"]
[TimeControl "180+1"]
[EndTime "11:06:06 PDT"]
[Termination "DortmundCity won by resignation"]

1. e4 {[%clk 0:03:00]} 1... e6 {[%clk 0:02:59.5]} 2. d4 {[%clk 0:02:59.7]} 2...
d5 {[%clk 0:02:59.9]} 3. e5 {[%clk 0:03:00.3]} 3... c5 {[%clk 0:03:00.1]} 4. c3
{[%clk 0:03:01]} 4... Nc6 {[%clk 0:02:59.7]} 5. Be3 {[%clk 0:03:00.6]} 5... Qb6
{[%clk 0:02:59.1]} 6. Qd2 {[%clk 0:03:00.6]} 6... Nh6 {[%clk 0:02:57.4]} 7. Bd3
{[%clk 0:02:59.1]} 7... Bd7 {[%clk 0:02:49.2]} 8. Nf3 {[%clk 0:02:57.5]} 8...
Ng4 {[%clk 0:02:43.4]} 9. O-O {[%clk 0:02:44.8]} 9... f6 {[%clk 0:02:42.2]} 10.
exf6 {[%clk 0:02:38.4]} 10... gxf6 {[%clk 0:02:43.1]} 11. Bf4 {[%clk 0:02:31]}
11... e5 {[%clk 0:01:53.4]} 12. dxe5 {[%clk 0:02:25.9]} 12... fxe5 {[%clk
0:01:54.3]} 13. Bg5 {[%clk 0:02:11.3]} 13... e4 {[%clk 0:01:48.1]} 14. h3 {[%clk
0:02:11.1]} 14... Nge5 {[%clk 0:01:46.5]} 15. Nxe5 {[%clk 0:02:09.2]} 15... Nxe5
{[%clk 0:01:47.4]} 16. Be2 {[%clk 0:02:07.5]} 16... Qg6 {[%clk 0:01:36.6]} 17.
f4 {[%clk 0:02:00.7]} 17... exf3 {[%clk 0:01:28.3]} 18. Bxf3 {[%clk 0:01:56.8]}
18... Be6 {[%clk 0:01:17.6]} 19. Na3 {[%clk 0:01:42.3]} 19... Nxf3+ {[%clk
0:01:06.6]} 20. Rxf3 {[%clk 0:01:42]} 20... Bg7 {[%clk 0:01:05.1]} 21. Nb5
{[%clk 0:01:23.6]} 21... Kd7 {[%clk 0:01:04.4]} 22. Qf4 {[%clk 0:01:18.6]} 22...
Kc6 {[%clk 0:01:01.4]} 23. Qc7+ {[%clk 0:01:08.7]} 23... Kxb5 {[%clk 0:01:00.4]}
24. Qxb7+ {[%clk 0:01:09.6]} 24... Ka5 {[%clk 0:01:00.6]} 25. b4+ {[%clk
0:01:06.4]} 25... cxb4 {[%clk 0:01:00.3]} 26. cxb4+ {[%clk 0:01:00.5]} 26... Ka4
{[%clk 0:01:00.6]} 27. Qc6+ {[%clk 0:00:33.7]} 27... Kxb4 {[%clk 0:00:56]} 28.
Rb3+ {[%clk 0:00:33.6]} 1-0